bitfinex/quotes_BTCUSD_20240811
["timestamp","ask_amount","ask_price","bid_price","bid_amount"]
[1723374069318,1.17337559,61124.0,61123.0,0.009152]
[1723374069714,1.18323161,61124.0,61123.0,0.009152]
[1723374069897,1.16923161,61124.0,61123.0,0.009152]
[1723374070093,1.18323161,61124.0,61123.0,0.009152]
[1723374070578,0.01183755,61113.0,61111.0,0.0001]
[1723374070788,0.01183755,61113.0,61082.0,0.49107874]
[1723374070789,0.09423755,61102.0,61082.0,0.49107874]
[1723374070973,1.08233044,61102.0,61101.0,4.13078505]
[1723374071299,1.08233044,61102.0,61101.0,3.99972817]
[1723374071300,1.35953669,61102.0,61101.0,3.99972817]
[1723374071522,1.37844041,61102.0,61101.0,3.99072817]
[1723374071716,1.31354457,61102.0,61101.0,3.99072817]
[1723374071951,1.44604903,61102.0,61101.0,3.99072817]
[1723374072915,1.46004903,61102.0,61101.0,3.99072817]
[1723374073292,1.32754457,61102.0,61101.0,3.22460574]
[1723374073489,1.32754457,61102.0,61091.0,0.0001]
[1723374073490,0.09423755,61092.0,61091.0,0.0001]
[1723374073701,1.17466906,61092.0,61091.0,0.0001]
[1723374073907,1.32734088,61092.0,61091.0,0.0001]
[1723374074110,1.07441074,61092.0,61091.0,0.0001]
[1723374074340,0.96191074,61092.0,61091.0,0.0001]
[1723374074539,1.13804599,61092.0,61091.0,0.0001]
[1723374074743,1.08425175,61092.0,61091.0,0.0001]
[1723374075164,1.09810463,61092.0,61091.0,0.0001]
[1723374075547,1.08425175,61092.0,61091.0,0.0001]
[1723374075791,1.0410681,61092.0,61091.0,0.0001]
[1723374075993,1.02721522,61092.0,61091.0,0.0001]
[1723374076143,1.0410681,61092.0,61091.0,0.0010152]
[1723374076348,1.0550681,61092.0,61091.0,0.0010152]
[1723374076869,1.0690681,61092.0,61091.0,0.0010152]
[1723374077076,1.0058728,61092.0,61091.0,0.0010152]
[1723374077222,0.9918728,61092.0,61091.0,0.0010152]
[1723374077433,1.0058728,61092.0,61091.0,0.0010152]
[1723374078476,1.0198728,61092.0,61091.0,0.0010152]
[1723374078883,0.4098728,61092.0,61091.0,0.0010152]
[1723374079087,0.42372568,61092.0,61091.0,0.0010152]
[1723374079292,0.3958728,61092.0,61091.0,0.0010152]
[1723374080140,0.42372568,61092.0,61091.0,0.0010152]
[1723374080249,0.3958728,61092.0,61091.0,0.0010152]
[1723374080452,0.3818728,61092.0,61091.0,0.0010152]
[1723374080652,1.0258728,61092.0,61091.0,0.0010152]
[1723374081783,0.9434728,61092.0,61091.0,0.0010152]
[1723374081985,0.1944728,61092.0,61091.0,0.0010152]
[1723374082188,0.1804728,61092.0,61091.0,0.0010152]
[1723374082362,0.1804728,61092.0,61091.0,0.01618192]
[1723374082711,0.1664728,61092.0,61091.0,0.02232904]
[1723374082936,0.1804728,61092.0,61091.0,0.02232904]
[1723374083145,0.01665788,61092.0,61091.0,0.16382904]
[1723374083331,0.03065788,61092.0,61091.0,0.16382904]
[1723374083762,0.01665788,61092.0,61091.0,0.14866232]
[1723374084268,0.00265788,61092.0,61091.0,0.14866232]
[1723374084706,0.1664728,61092.0,61091.0,0.1425152]
[1723374084933,0.1664728,61092.0,61091.0,0.0667152]
[1723374085139,0.9151728,61092.0,61091.0,0.0010152]
[1723374085343,0.9266728,61092.0,61091.0,0.0010152]
[1723374085543,0.9636728,61092.0,61091.0,0.0010152]
[1723374085783,0.9636728,61092.0,61034.0,0.0001]
[1723374085784,0.02,61057.0,61034.0,0.0001]
[1723374085979,3.70479926,61057.0,61034.0,0.0001]
[1723374086179,4.46836226,61057.0,61034.0,0.0001]
[1723374086429,4.20232226,61057.0,61034.0,0.0001]
[1723374086631,4.20232226,61057.0,61029.0,0.009141]
[1723374086632,0.04153755,61030.0,61029.0,0.009141]
[1723374087046,0.06453755,61030.0,61029.0,0.009141]
[1723374087257,0.77835247,61030.0,61029.0,0.009141]
[1723374087456,0.01183755,61025.0,61011.0,0.0001]
[1723374087662,0.14713313,61025.0,61011.0,0.0001]
[1723374087862,0.35077092,61025.0,61011.0,0.0001]
[1723374088269,0.51458584,61025.0,61011.0,0.0001]
[1723374088678,0.51588584,61025.0,61011.0,0.0001]
[1723374089105,0.52988584,61025.0,61011.0,0.0001]
[1723374089283,0.51670617,61025.0,61011.0,0.0001]
[1723374089418,0.41176838,61025.0,61011.0,0.0619]
[1723374089619,0.3134728,61025.0,61011.0,0.0619]
[1723374089829,0.2994728,61025.0,61011.0,0.0619]
[1723374090313,0.3134728,61025.0,61011.0,0.0619]
[1723374090659,0.2804728,61025.0,61011.0,0.0619]
[1723374090863,0.2664728,61025.0,61011.0,0.0619]
[1723374091066,0.2764728,61025.0,61011.0,0.0619]
[1723374091265,0.2904728,61025.0,61011.0,0.0619]
[1723374092014,0.3044728,61025.0,61011.0,0.0619]
[1723374092438,0.3274728,61025.0,61011.0,0.0001]
[1723374092671,0.4316279,61025.0,61011.0,0.0001]
[1723374092811,0.4236279,61025.0,61011.0,0.0001]
[1723374093020,1.1463279,61025.0,61011.0,0.0001]
[1723374093249,1.1616279,61025.0,61024.0,0.0120899]
[1723374093656,1.2062623,61025.0,61024.0,0.0120899]
[1723374093858,1.2202623,61025.0,61024.0,0.0120899]
[1723374094270,0.01183755,61004.0,61003.0,0.0005]
[1723374094475,0.03183755,61001.0,61000.0,0.19753195]
[1723374094651,0.03183755,61001.0,61000.0,0.12290366]
[1723374094652,1.38144197,61001.0,61000.0,0.12290366]
[1723374094849,1.61704097,61001.0,61000.0,0.08540366]
[1723374095069,1.83444197,61001.0,61000.0,0.08540366]
[1723374095284,0.01,60965.0,60948.0,0.0809]
[1723374095512,0.00183755,60969.0,60948.0,0.0809]
[1723374095513,0.00183755,60959.0,60948.0,0.0809]
[1723374095728,0.00183755,60955.0,60948.0,0.0809]
[1723374096848,0.00082033,60949.0,60948.0,0.0809]
[1723374097082,0.00082033,60949.0,60948.0,0.0769]
[1723374097083,0.16463525,60949.0,60948.0,0.0769]
[1723374097320,0.1664728,60949.0,60948.0,0.0769]
[1723374097771,0.1664728,60949.0,60948.0,0.0759]
[1723374097978,0.2664728,60949.0,60948.0,0.0759]
[1723374098203,0.00183755,60938.0,60931.0,0.0001]
[1723374098432,0.17565247,60932.0,60931.0,0.0001]
[1723374098660,0.29865247,60932.0,60931.0,0.0001]
[1723374099082,0.28865247,60932.0,60931.0,0.0001]
[1723374099288,0.37235247,60932.0,60931.0,0.0001]
[1723374099500,0.30765247,60932.0,60931.0,0.0001]
[1723374099922,0.39780757,60932.0,60931.0,0.0001]
[1723374100138,0.45269113,60932.0,60931.0,0.0001]
[1723374100341,0.38780757,60932.0,60931.0,0.0001]
[1723374100587,0.26065247,60932.0,60931.0,0.0001]
[1723374100994,0.2614728,60932.0,60931.0,0.0001]
[1723374101198,0.2754728,60932.0,60931.0,0.0001]
[1723374101408,0.2754728,60932.0,60931.0,0.081]
[1723374101601,0.2614728,60932.0,60931.0,0.081]
[1723374101971,0.2754728,60932.0,60931.0,0.081]
[1723374102176,0.2614728,60932.0,60931.0,0.081]
[1723374102595,0.2754728,60932.0,60931.0,0.081]
[1723374102942,0.25963525,60932.0,60931.0,0.081]
[1723374103298,0.25963525,60932.0,60931.0,0.09038474]
[1723374103528,0.00082033,60932.0,60931.0,0.15218474]
[1723374103862,0.00183755,60941.0,60931.0,0.15218474]
[1723374103863,0.00183755,60942.0,60934.0,0.01]
[1723374104064,0.16381492,60941.0,60936.0,0.0809]
[1723374104197,0.00183755,60953.0,60937.0,0.01328183]
[1723374104393,0.00183755,60953.0,60936.0,0.0809]
[1723374104394,0.16381492,60952.0,60939.0,0.0809]
[1723374104796,0.08184646,60951.0,60939.0,0.0809]
[1723374104996,0.00183755,60940.0,60939.0,0.0809]
[1723374105203,0.00183755,60940.0,60931.0,0.0001]
[1723374105204,0.00183755,60932.0,60931.0,0.0001]
[1723374105402,0.16381492,60932.0,60931.0,0.0001]
[1723374105627,0.26565247,60932.0,60931.0,0.0001]
[1723374106411,0.26665247,60932.0,60931.0,0.0011]
[1723374106787,0.28965247,60932.0,60931.0,0.0011]
[1723374107595,0.29865247,60932.0,60931.0,0.0001]
[1723374108063,0.31265247,60932.0,60931.0,0.0001]
[1723374108230,0.29865247,60932.0,60931.0,6e-05]
[1723374108506,0.28865247,60932.0,60931.0,6e-05]
[1723374108823,0.90865247,60932.0,60931.0,6e-05]
[1723374109241,0.92265247,60932.0,60931.0,6e-05]
[1723374109441,1.06695247,60932.0,60931.0,6e-05]
[1723374109698,0.11353755,60927.0,60926.0,0.0128474]
[1723374109879,3.25605082,60927.0,60926.0,0.0128474]
[1723374110086,0.09353755,60912.0,60900.0,0.001]
[1723374110308,0.09353755,60900.0,60899.0,0.0103579]
[1723374110548,0.77245247,60900.0,60899.0,0.0103579]
[1723374110744,0.39164634,60900.0,60899.0,0.0103579]
[1723374110944,0.34185755,60900.0,60899.0,0.0103579]
[1723374111150,0.16381492,60900.0,60899.0,0.09112035]
[1723374111357,0.08184646,60911.0,60899.0,0.01342035]
[1723374111581,0.16381492,60900.0,60899.0,0.01342035]
[1723374111764,0.16981492,60900.0,60899.0,0.01342035]
[1723374112000,0.006,60900.0,60899.0,0.09112035]
[1723374112127,0.49107874,60920.0,60899.0,0.09112035]
[1723374112128,0.49107874,60920.0,60913.0,0.00306245]
[1723374112333,0.49107874,60920.0,60899.0,0.16277994]
[1723374112334,0.16381492,60917.0,60916.0,0.00306245]
[1723374112775,0.16381492,60917.0,60916.0,0.08076245]
[1723374112956,0.16381492,60917.0,60916.0,0.14636245]
[1723374113301,0.16381492,60917.0,60916.0,0.15394494]
[1723374113501,0.16381492,60917.0,60916.0,0.16933943]
[1723374113883,0.08184646,60931.0,60930.0,0.00306245]
[1723374114116,0.08184646,60931.0,60924.0,0.00306245]
[1723374114270,0.08184646,60931.0,60929.0,0.00306245]
[1723374114472,0.0817,60941.0,60932.0,0.00306245]
[1723374114673,0.08184646,60935.0,60932.0,0.00306245]
[1723374115074,0.16381492,60933.0,60932.0,0.00306245]
[1723374115747,0.16381492,60933.0,60932.0,0.06866245]
[1723374115947,0.08268046,60951.0,60946.0,0.00306245]
[1723374116146,0.08268046,60951.0,60949.0,0.00306245]
[1723374116663,0.16381492,60950.0,60949.0,0.00306245]
[1723374117983,0.16381492,60950.0,60949.0,0.14636245]
[1723374118396,0.17681492,60950.0,60949.0,0.07762265]
[1723374118605,0.16381492,60950.0,60949.0,0.07762265]
[1723374118844,0.16381492,60950.0,60949.0,0.0089602]
[1723374119080,0.16381492,60950.0,60945.0,0.00306245]
[1723374119279,0.16381492,60950.0,60936.0,0.00306245]
[1723374119280,0.24566138,60946.0,60936.0,0.00306245]
[1723374119489,0.16381492,60943.0,60942.0,0.00306245]
[1723374119693,0.26381492,60943.0,60942.0,0.00306245]
[1723374119924,0.26381492,60943.0,60936.0,0.00306245]
[1723374120119,0.1,60943.0,60942.0,0.00306245]
[1723374120343,0.26381492,60943.0,60942.0,0.00306245]
[1723374120960,0.26381492,60943.0,60934.0,0.06866245]
[1723374121178,0.16381492,60935.0,60927.0,0.00306245]
[1723374121384,0.08184646,60938.0,60928.0,0.00306245]
[1723374121385,0.1,60934.0,60928.0,0.00306245]
[1723374121596,0.16381492,60929.0,60928.0,0.00306245]
[1723374121800,0.02,60920.0,60916.0,0.0009174]
[1723374121978,0.10878401,60917.0,60916.0,0.0009174]
[1723374122203,0.92259893,60917.0,60916.0,0.0009174]
[1723374122354,1.04559893,60917.0,60916.0,0.0009174]
[1723374122552,1.02559893,60917.0,60916.0,0.0009174]
[1723374122756,1.18989893,60917.0,60916.0,0.0009174]
[1723374122960,0.08863755,60900.0,60899.0,0.0103579]
[1723374123166,0.92245247,60900.0,60899.0,0.0103579]
[1723374123371,0.91851492,60900.0,60899.0,0.0103579]
[1723374123574,0.92851492,60900.0,60899.0,0.0103579]
[1723374124357,0.93545247,60900.0,60899.0,0.0103579]
[1723374124558,0.94545247,60900.0,60899.0,0.0103579]
[1723374124766,0.95945247,60900.0,60899.0,0.0103579]
[1723374125602,0.96919802,60900.0,60899.0,0.0103579]
[1723374126013,0.98319802,60900.0,60899.0,0.0103579]
[1723374126256,1.20299802,60900.0,60899.0,0.0103579]
[1723374126480,1.20299802,60900.0,60871.0,0.009374]
[1723374126481,0.01,60872.0,60871.0,0.009374]
[1723374126705,0.38088817,60872.0,60871.0,0.009374]
[1723374126913,0.38088817,60872.0,60838.0,0.50025274]
[1723374126914,0.02654262,60859.0,60858.0,0.61493356]
[1723374127109,1.01952035,60859.0,60858.0,0.60577639]
[1723374127330,1.01952035,60859.0,60838.0,0.50025274]
[1723374127331,1.8822468,60859.0,60838.0,0.009174]
[1723374127555,1.8822468,60859.0,60761.0,0.0656]
[1723374127556,0.01,60773.0,60761.0,0.0656]
[1723374127754,0.01,60771.0,60762.0,0.01473]
[1723374127975,0.01703233,60787.0,60762.0,0.01473]
[1723374127976,0.01,60774.0,60762.0,0.01473]
[1723374128158,0.01,60778.0,60763.0,0.00329095]
[1723374128361,0.01703233,60787.0,60761.0,0.0656]
[1723374128362,0.49107874,60775.0,60761.0,0.0656]
[1723374128593,0.13,60774.0,60761.0,0.0656]
[1723374128831,0.01,60772.0,60761.0,0.0656]
[1723374129025,0.001,60773.0,60762.0,0.01573]
[1723374129240,0.12,60772.0,60763.0,0.0032909]
[1723374129441,0.12,60772.0,60743.0,0.0656]
[1723374129442,0.01,60752.0,60743.0,0.0656]
[1723374129644,0.01,60752.0,60751.0,0.0818]
[1723374130193,0.17381492,60752.0,60751.0,0.0001]
[1723374130398,0.01,60742.0,60741.0,0.0001]
[1723374130598,0.29381492,60742.0,60741.0,0.0001]
[1723374131200,0.41681492,60742.0,60741.0,0.0001]
[1723374131614,0.40781492,60742.0,60741.0,0.0001]
[1723374132034,0.39381492,60742.0,60741.0,0.0001]
[1723374132239,0.29381492,60742.0,60741.0,0.0001]
[1723374132439,0.30781492,60742.0,60741.0,0.0818]
[1723374132637,0.28381492,60742.0,60741.0,0.10184211]
[1723374132878,0.01,60760.0,60750.0,0.01]
[1723374133038,0.0786,60786.0,60752.0,0.01]
[1723374133039,0.28381492,60759.0,60752.0,0.01]
[1723374133235,0.02,60805.0,60742.0,0.08184646]
[1723374133236,0.01,60772.0,60761.0,0.0656]
[1723374133437,0.01,60783.0,60767.0,0.02]
[1723374133594,0.01708996,60800.0,60773.0,0.0817]
[1723374133595,0.02,60786.0,60773.0,0.0817]
[1723374133794,0.01,60778.0,60774.0,0.0081706]
[1723374133998,0.01,60775.0,60774.0,0.0081706]
[1723374134262,0.01,60775.0,60773.0,0.0817]
[1723374134263,0.17381492,60775.0,60773.0,0.0817]
[1723374134505,0.17381492,60775.0,60762.0,0.002]
[1723374134506,0.01,60751.0,60750.0,0.04677313]
[1723374134647,0.17381492,60751.0,60749.0,0.0656]
[1723374134867,0.16381492,60750.0,60749.0,0.0656]
[1723374135228,0.28381492,60750.0,60749.0,0.0656]
[1723374135421,0.18184646,60769.0,60749.0,0.0656]
[1723374135422,0.01,60763.0,60758.0,0.01]
[1723374135631,0.013,60775.0,60755.0,0.02]
[1723374135632,0.01,60771.0,60755.0,0.02]
[1723374135840,0.28381492,60770.0,60765.0,0.01]
[1723374136060,0.12,60769.0,60766.0,0.0656]
[1723374136262,0.56967874,60798.0,60766.0,0.0656]
[1723374136263,0.01,60786.0,60779.0,0.01]
[1723374136461,0.16381492,60785.0,60783.0,0.01]
[1723374136669,0.16381492,60785.0,60766.0,0.0656]
[1723374136670,0.01,60743.0,60742.0,0.0656]
[1723374136872,0.75645311,60784.0,60742.0,0.0656]
[1723374136873,0.01,60748.0,60742.0,0.0656]
[1723374137071,0.00329025,60764.0,60744.0,0.01]
[1723374137072,0.01,60757.0,60744.0,0.01]
[1723374137298,0.00329025,60764.0,60746.0,0.01]
[1723374137299,0.01,60754.0,60746.0,0.01]
[1723374137472,0.01,60758.0,60746.0,0.01]
[1723374137681,0.01,60755.0,60747.0,0.01]
[1723374137880,0.16381492,60755.0,60748.0,0.00329202]
[1723374138092,0.1,60772.0,60748.0,0.01079872]
[1723374138093,0.01,60765.0,60748.0,0.01079872]
[1723374138294,0.01,60773.0,60767.0,0.01]
[1723374138461,0.01,60768.0,60766.0,0.0656]
[1723374138680,0.1,60785.0,60741.0,0.0001]
[1723374138681,0.01,60742.0,60741.0,0.0001]
[1723374138924,0.05387628,60742.0,60741.0,0.0001]
[1723374139121,0.01329025,60742.0,60741.0,0.0001]
[1723374139682,0.03629025,60742.0,60722.0,0.64273767]
[1723374139884,0.01,60723.0,60722.0,0.53273767]
[1723374140107,0.16381492,60723.0,60722.0,0.53273767]
[1723374140293,4.11464492,60723.0,60722.0,0.23464567]
[1723374140494,0.79791506,60723.0,60722.0,0.00862567]
[1723374140785,0.27381492,60723.0,60722.0,0.00862567]
[1723374140985,0.28381492,60723.0,60722.0,0.00862567]
[1723374141286,0.27381492,60723.0,60722.0,0.00862567]
[1723374141502,0.30381492,60723.0,60722.0,0.00862567]
[1723374141701,0.30381492,60723.0,60692.0,0.0656]
[1723374141702,0.01,60701.0,60692.0,0.0656]
[1723374141923,0.17381492,60701.0,60692.0,0.0656]
[1723374142282,0.16381492,60701.0,60692.0,0.0656]
[1723374142487,0.08184646,60726.0,60700.0,0.156974]
[1723374142488,0.01,60721.0,60700.0,0.156974]
[1723374142689,0.01,60724.0,60719.0,0.01]
[1723374142896,0.01,60706.0,60701.0,0.1473]
[1723374143104,0.01,60702.0,60701.0,0.1333]
[1723374143305,0.01,60702.0,60700.0,0.009674]
[1723374143306,0.01,60701.0,60700.0,0.009674]
[1723374143510,0.17381492,60701.0,60700.0,0.009674]
[1723374143730,0.16381492,60701.0,60700.0,0.009674]
[1723374144147,0.01,60710.0,60700.0,0.009674]
[1723374144371,0.01,60707.0,60700.0,0.009674]
[1723374144573,0.16381492,60706.0,60700.0,0.010674]
[1723374144778,0.014,60721.0,60700.0,0.010674]
[1723374144779,0.01,60701.0,60700.0,0.010674]
[1723374144999,0.17710517,60701.0,60700.0,0.009674]
[1723374145380,0.17710517,60701.0,60700.0,0.010674]
[1723374145573,0.17710517,60701.0,60700.0,0.009674]
[1723374145778,0.16381492,60701.0,60667.0,0.32278145]
[1723374145978,0.01,60696.0,60669.0,0.0653]
[1723374146206,0.16381492,60695.0,60670.0,0.13881492]
[1723374146378,0.01329025,60694.0,60671.0,0.0653]
[1723374146614,0.01329025,60694.0,60672.0,0.0075303]
[1723374146615,0.16381492,60693.0,60672.0,0.0075303]
[1723374146960,0.003,60701.0,60674.0,0.0653]
[1723374147161,0.16381492,60700.0,60676.0,0.0653]
[1723374147299,0.003,60701.0,60677.0,0.16381492]
[1723374147502,0.003,60701.0,60678.0,0.0653]
[1723374147770,0.003,60701.0,60680.0,0.0653]
[1723374147954,0.01529025,60710.0,60682.0,0.0653]
[1723374147955,0.01329025,60710.0,60682.0,0.0653]
[1723374148129,0.08384646,60706.0,60683.0,0.18747867]
[1723374148304,0.014,60696.0,60683.0,0.03118188]
[1723374148506,0.08184646,60706.0,60683.0,0.03118188]
[1723374148507,0.002,60711.0,60684.0,0.16710987]
[1723374148715,0.49107874,60710.0,60685.0,0.148]
[1723374148942,0.50107874,60728.0,60690.0,0.0653]
[1723374149143,0.50107874,60728.0,60693.0,0.0827]
[1723374149144,0.49107874,60728.0,60693.0,0.0827]
[1723374149345,0.08513671,60727.0,60694.0,0.0653]
[1723374149628,0.01,60724.0,60697.0,0.148]
[1723374149817,0.08184646,60713.0,60698.0,0.03118149]
[1723374149959,0.17381492,60712.0,60698.0,0.00750155]
[1723374150160,0.16381492,60712.0,60698.0,0.00750155]
[1723374150377,0.16381492,60712.0,60697.0,0.148]
[1723374151352,0.01,60726.0,60699.0,0.0827]
[1723374151551,0.16381492,60719.0,60701.0,0.0653]
[1723374151788,0.16381492,60719.0,60702.0,0.11421087]
[1723374151965,0.002,60712.0,60704.0,0.0653]
[1723374152099,0.002,60738.0,60704.0,0.0653]
[1723374152100,0.022,60741.0,60705.0,0.16710841]
[1723374152302,0.49107874,60728.0,60709.0,0.148]
[1723374152518,0.01,60741.0,60712.0,0.0653]
[1723374152719,0.00329025,60740.0,60714.0,0.0827]
[1723374152924,0.002,60741.0,60715.0,0.22911492]
[1723374153131,0.00529025,60741.0,60716.0,0.0827]
[1723374153338,0.00329025,60741.0,60717.0,0.20575531]
[1723374153538,0.01,60737.0,60717.0,0.21330423]
[1723374153740,0.002,60740.0,60717.0,0.21330423]
[1723374153966,0.08184646,60718.0,60717.0,0.00754892]
[1723374154248,0.08184646,60718.0,60706.0,0.0653]
[1723374154423,0.012,60713.0,60706.0,0.0653]
[1723374154673,0.16381492,60717.0,60706.0,0.0653]
[1723374154799,0.16381492,60717.0,60712.0,0.001]
[1723374155206,0.16381492,60717.0,60707.0,0.0138]
[1723374155495,0.012,60713.0,60707.0,0.0138]
[1723374155618,0.012,60713.0,60706.0,0.0663]
[1723374155619,0.08184646,60709.0,60706.0,0.0663]
[1723374155832,0.08184646,60709.0,60706.0,0.0653]
[1723374156433,0.08184646,60709.0,60706.0,0.0471]
[1723374156817,0.08184646,60709.0,60704.0,0.0827]
[1723374156818,0.02,60698.0,60697.0,0.0009207]
[1723374156972,0.19581492,60698.0,60697.0,0.0009207]
[1723374157174,0.19581492,60698.0,60678.0,0.0827]
[1723374157175,0.01,60685.0,60678.0,0.0827]
[1723374157350,0.08184646,60680.0,60679.0,0.00827]
[1723374157702,0.02,60713.0,60680.0,0.0827]
[1723374157851,0.1001,60729.0,60668.0,0.428]
[1723374157852,0.01,60709.0,60681.0,0.27652021]
[1723374158056,0.01,60709.0,60707.0,0.001]
[1723374158254,0.01,60704.0,60681.0,0.0827]
[1723374158606,0.08184646,60697.0,60686.0,0.49107874]
[1723374158823,0.16381492,60696.0,60687.0,0.1253269]
[1723374158978,0.08184646,60717.0,60688.0,0.0827]
[1723374159185,0.16381492,60716.0,60707.0,0.001]
[1723374159385,0.02,60726.0,60708.0,0.0827]
[1723374159586,0.02,60726.0,60709.0,0.00827]
[1723374159587,0.08184646,60723.0,60709.0,0.00827]
[1723374159767,0.08184646,60723.0,60710.0,0.0653]
[1723374160167,0.16381492,60722.0,60710.0,0.0653]
[1723374160624,0.08184646,60721.0,60710.0,0.0653]
[1723374160778,0.01,60717.0,60710.0,0.0653]
[1723374160982,0.012,60711.0,60710.0,0.0653]
[1723374161181,0.16381492,60711.0,60710.0,0.0653]
[1723374161604,0.17381492,60711.0,60710.0,0.0653]
[1723374161816,0.16381492,60711.0,60710.0,0.0653]
[1723374162223,0.01,60720.0,60710.0,0.0653]
[1723374162427,0.16381492,60719.0,60711.0,0.00329385]
[1723374162761,0.09184646,60728.0,60711.0,0.00329381]
[1723374162762,0.014,60717.0,60711.0,0.00329381]
[1723374163662,0.014,60717.0,60710.0,0.0653]
[1723374164043,0.08184646,60728.0,60710.0,0.0653]
[1723374164240,0.16381492,60727.0,60711.0,0.13949656]
[1723374164415,0.08184646,60728.0,60712.0,0.12469656]
[1723374164618,0.08184646,60721.0,60712.0,0.12469656]
[1723374164783,0.01,60713.0,60710.0,0.0663]
[1723374164979,0.012,60711.0,60710.0,0.001]
[1723374165221,0.16381492,60711.0,60701.0,0.0626]
[1723374165425,0.08184646,60721.0,60711.0,0.001]
[1723374165606,0.17581492,60720.0,60711.0,0.001]
[1723374165778,0.01,60718.0,60702.0,0.01403]
[1723374165986,0.16381492,60717.0,60703.0,0.12435188]
[1723374166179,0.16381492,60717.0,60702.0,0.01403]
[1723374166180,0.16381492,60717.0,60704.0,0.12435188]
[1723374166431,0.16381492,60717.0,60705.0,0.15222007]
[1723374166632,0.08184646,60714.0,60706.0,0.12435188]
[1723374166807,0.012,60720.0,60705.0,0.02786819]
[1723374166808,0.000838,60712.0,60707.0,0.12435188]
[1723374167046,0.000838,60712.0,60708.0,0.12435188]
[1723374167231,0.011,60711.0,60710.0,0.001]
[1723374167433,0.000838,60712.0,60710.0,0.21489355]
[1723374167661,0.000838,60712.0,60711.0,0.12435188]
[1723374167989,0.17465292,60712.0,60711.0,0.12435188]
[1723374168275,0.17465292,60712.0,60701.0,0.0626]
[1723374168276,0.02,60710.0,60701.0,0.0626]
[1723374168491,0.17465292,60712.0,60702.0,0.61464241]
[1723374168492,0.16381492,60709.0,60702.0,0.61464241]
[1723374168684,0.16381492,60709.0,60703.0,0.12356367]
[1723374168890,0.16381492,60709.0,60704.0,0.12356367]
[1723374169112,0.01,60706.0,60705.0,0.12356367]
[1723374169397,0.16381492,60706.0,60699.0,0.0777]
[1723374169629,0.012,60700.0,60699.0,0.0777]
[1723374169827,0.012,60700.0,60697.0,0.0009218]
[1723374169828,0.03,60698.0,60697.0,0.0009218]
[1723374169962,0.19381492,60698.0,60697.0,0.0009218]
[1723374170171,0.17381492,60698.0,60697.0,0.0009218]
[1723374170872,0.16381492,60698.0,60697.0,0.12469788]
[1723374171077,0.0001,60729.0,60697.0,0.15369159]
[1723374171280,0.01,60728.0,60699.0,0.0777]
[1723374171487,0.02,60728.0,60700.0,0.36287347]
[1723374171681,0.08184646,60724.0,60701.0,0.43091147]
[1723374171900,0.01,60705.0,60702.0,0.36287347]
[1723374172111,0.10184646,60711.0,60703.0,0.12377358]
[1723374172320,0.08184646,60704.0,60697.0,0.0635218]
[1723374172526,0.08184646,60704.0,60698.0,0.12352613]
[1723374172721,0.16381492,60704.0,60699.0,0.12352613]
[1723374172927,0.02,60709.0,60700.0,0.14223092]
[1723374173122,0.014838,60712.0,60697.0,0.0635218]
[1723374173123,0.02,60707.0,60701.0,0.12352613]
[1723374173345,0.012,60703.0,60702.0,0.12352613]
[1723374173527,0.002,60703.0,60702.0,0.12352613]
[1723374173716,0.002,60705.0,60702.0,0.12352613]
[1723374174040,0.01,60698.0,60697.0,0.0009218]
[1723374174180,0.24566138,60698.0,60697.0,0.12484691]
[1723374174387,0.01,60711.0,60697.0,0.1451016]
[1723374174610,0.000838,60712.0,60699.0,0.0777]
[1723374174863,0.000838,60712.0,60700.0,0.52684274]
[1723374175098,0.014,60705.0,60701.0,0.36302782]
[1723374175329,0.000838,60712.0,60702.0,0.42559974]
[1723374175579,0.000838,60712.0,60703.0,0.36302782]
[1723374175823,0.000838,60712.0,60704.0,0.06828076]
[1723374176061,0.000838,60712.0,60705.0,0.53063301]
[1723374176306,0.000838,60712.0,60705.0,0.16381492]
[1723374176535,0.014,60711.0,60707.0,0.0626]
[1723374176769,0.014,60711.0,60708.0,0.44121532]
[1723374177007,0.000838,60712.0,60709.0,0.36351532]
[1723374177253,0.000838,60712.0,60710.0,0.36351532]
[1723374177492,0.014838,60712.0,60711.0,0.415535]
[1723374177731,0.000838,60712.0,60711.0,0.415535]
[1723374177973,0.000838,60712.0,60711.0,0.41537381]
[1723374178226,0.000838,60712.0,60711.0,0.41536273]
[1723374178726,0.014838,60712.0,60711.0,0.41536273]
[1723374179436,0.014838,60712.0,60711.0,0.41554093]
[1723374181383,0.014838,60712.0,60711.0,0.57935585]
[1723374181776,0.014838,60712.0,60711.0,0.51105348]
[1723374182010,0.014838,60712.0,60711.0,0.56873056]
[1723374183440,0.000838,60712.0,60711.0,0.59173056]
[1723374183877,0.0001,60729.0,60711.0,0.65433056]
[1723374184082,0.0001,60729.0,60712.0,0.65984394]
[1723374184285,0.0001,60729.0,60713.0,0.35289596]
[1723374184517,0.0001,60729.0,60714.0,0.51671088]
[1723374184719,0.0001,60729.0,60715.0,0.35289596]
[1723374184927,0.0001,60729.0,60716.0,0.51671088]
[1723374185145,0.0141,60729.0,60717.0,0.24795136]
[1723374185347,0.0141,60729.0,60718.0,0.16381492]
[1723374185567,0.0141,60729.0,60719.0,0.18225909]
[1723374185828,0.0141,60729.0,60720.0,0.34607401]
[1723374186036,0.0141,60729.0,60721.0,0.05416513]
[1723374186248,0.0141,60729.0,60722.0,0.11746734]
[1723374186475,0.0001,60729.0,60723.0,0.10186439]
[1723374186689,0.0141,60729.0,60724.0,0.15599772]
[1723374186891,0.0141,60729.0,60725.0,0.18953928]
[1723374187100,0.0001,60729.0,60726.0,0.15599772]
[1723374187305,0.0001,60729.0,60726.0,0.10167013]
[1723374187484,0.0141,60729.0,60727.0,0.10167013]
[1723374187741,0.0001,60729.0,60728.0,0.10167013]
[1723374187951,0.0001,60729.0,60728.0,0.1151913]
[1723374187952,0.0131,60729.0,60728.0,0.1151913]
[1723374188388,0.0001,60729.0,60728.0,0.1151913]
[1723374189016,0.0101,60729.0,60728.0,0.1151913]
[1723374189225,0.0001,60729.0,60728.0,0.1933913]
[1723374189445,0.0001,60729.0,60728.0,0.24766854]
[1723374189632,0.0001,60729.0,60728.0,0.1933913]